[Event "Titled Tuesday Blitz November 15 Early 2022"]
[White "Torres Dominguez, David"]
[Black "Manon-og, Ramon Jr."]
[WhiteFideId "2220857"]
[BlackFideId "5200776"]
[WhiteElo "2037"]
[BlackElo "2286"]
[Result "1-0"]
[Round "11"]
[TimeControl "180+1"]
[Date "2022.11.16"]
[WhiteClock "0:00:28"]
[BlackClock "0:00:44"]

1. e4 {[%clk 0:03:00]}  c5 {[%clk 0:03:00]} 2. Nf3 {[%clk 0:02:59]}  d6 {[%clk 0:03:00]} 3. d4 {[%clk 0:03:00]}  cxd4 {[%clk 0:03:01]} 4. Nxd4 {[%clk 0:03:00]}  Nf6 {[%clk 0:03:01]} 5. Nc3 {[%clk 0:03:01]}  a6 {[%clk 0:03:02]} 6. f4 {[%clk 0:03:00]}  e5 {[%clk 0:03:02]} 7. Nf3 {[%clk 0:02:58]}  Nbd7 {[%clk 0:03:02]} 8. a4 {[%clk 0:02:56]}  Be7 {[%clk 0:03:01]} 9. Bd3 {[%clk 0:02:55]}  exf4 {[%clk 0:03:01]} 10. Bxf4 {[%clk 0:02:53]}  Qb6 {[%clk 0:03:01]} 11. Rb1 {[%clk 0:02:45]}  Ng4 {[%clk 0:02:59]} 12. Qe2 {[%clk 0:02:39]}  O-O {[%clk 0:02:49]} 13. h3 {[%clk 0:02:08]}  Nge5 {[%clk 0:02:49]} 14. Nd5 {[%clk 0:02:06]}  Nxd3+ {[%clk 0:02:37]} 15. cxd3 {[%clk 0:02:04]}  Qd8 {[%clk 0:02:37]} 16. O-O {[%clk 0:02:03]}  Nf6 {[%clk 0:02:36]} 17. Nxe7+ {[%clk 0:02:00]}  Qxe7 {[%clk 0:02:36]} 18. Bg5 {[%clk 0:02:01]}  Qe6 {[%clk 0:02:35]} 19. Nd4 {[%clk 0:01:58]}  Qe5 {[%clk 0:02:34]} 20. Bxf6 {[%clk 0:01:57]}  gxf6 {[%clk 0:02:35]} 21. Nf3 {[%clk 0:01:53]}  Qg3 {[%clk 0:02:31]} 22. Nd4 {[%clk 0:01:42]}  Kh8 {[%clk 0:02:24]} 23. Nf5 {[%clk 0:01:32]}  Bxf5 {[%clk 0:02:16]} 24. Rxf5 {[%clk 0:01:33]}  Rg8 {[%clk 0:02:14]} 25. Qf3 {[%clk 0:01:33]}  Qxf3 {[%clk 0:02:08]} 26. Rxf3 {[%clk 0:01:31]}  Rg6 {[%clk 0:02:06]} 27. Rbf1 {[%clk 0:01:31]}  Kg7 {[%clk 0:02:06]} 28. Rf5 {[%clk 0:01:29]}  Rc8 {[%clk 0:02:06]} 29. R1f2 {[%clk 0:01:28]}  Rc1+ {[%clk 0:02:04]} 30. Rf1 {[%clk 0:01:27]}  Rc2 {[%clk 0:02:04]} 31. R5f2 {[%clk 0:01:25]}  Rc5 {[%clk 0:02:00]} 32. Rf5 {[%clk 0:01:07]}  Rc2 {[%clk 0:01:59]} 33. R1f2 {[%clk 0:01:07]}  Rc1+ {[%clk 0:01:59]} 34. Kh2 {[%clk 0:01:05]}  Ra1 {[%clk 0:01:57]} 35. a5 {[%clk 0:01:04]}  Rd1 {[%clk 0:01:46]} 36. Rd5 {[%clk 0:01:04]}  Kf8 {[%clk 0:01:45]} 37. Rxd6 {[%clk 0:01:03]}  Ke7 {[%clk 0:01:46]} 38. Rd5 {[%clk 0:01:03]}  Ke6 {[%clk 0:01:27]} 39. Rd4 {[%clk 0:01:02]}  Rg8 {[%clk 0:01:22]} 40. Rb4 {[%clk 0:01:02]}  Rb8 {[%clk 0:01:22]} 41. Rb6+ {[%clk 0:01:01]}  Ke5 {[%clk 0:01:21]} 42. Rf3 {[%clk 0:00:59]}  Rd2 {[%clk 0:01:17]} 43. Rbxf6 {[%clk 0:00:52]}  Rg8 {[%clk 0:01:17]} 44. Rf2 {[%clk 0:00:52]}  Rxd3 {[%clk 0:01:16]} 45. Rxf7 {[%clk 0:00:51]}  Rb3 {[%clk 0:01:12]} 46. Rxh7 {[%clk 0:00:50]}  Kxe4 {[%clk 0:01:12]} 47. Rh4+ {[%clk 0:00:49]}  Ke5 {[%clk 0:01:10]} 48. Rh5+ {[%clk 0:00:47]}  Ke4 {[%clk 0:01:10]} 49. Rh6 {[%clk 0:00:45]}  Rb5 {[%clk 0:01:04]} 50. Rb6 {[%clk 0:00:44]}  Rxb6 {[%clk 0:01:04]} 51. axb6 {[%clk 0:00:43]}  Rg6 {[%clk 0:01:05]} 52. g4 {[%clk 0:00:40]}  Rxb6 {[%clk 0:01:04]} 53. Kg3 {[%clk 0:00:37]}  a5 {[%clk 0:01:02]} 54. g5 {[%clk 0:00:37]}  a4 {[%clk 0:01:01]} 55. h4 {[%clk 0:00:37]}  Ke3 {[%clk 0:00:57]} 56. Rh2 {[%clk 0:00:33]}  Rg6 {[%clk 0:00:50]} 57. Kg4 {[%clk 0:00:32]}  b5 {[%clk 0:00:50]} 58. h5 {[%clk 0:00:32]}  Rg8 {[%clk 0:00:51]} 59. g6 {[%clk 0:00:31]}  b4 {[%clk 0:00:51]} 60. Kg5 {[%clk 0:00:31]}  a3 {[%clk 0:00:52]} 61. bxa3 {[%clk 0:00:30]}  bxa3 {[%clk 0:00:52]} 62. h6 {[%clk 0:00:30]}  Rb8 {[%clk 0:00:51]} 63. Ra2 {[%clk 0:00:29]}  Rb5+ {[%clk 0:00:47]} 64. Kg4 {[%clk 0:00:29]}  Rb7 {[%clk 0:00:45]} 65. g7 {[%clk 0:00:28]}  Rb4+ {[%clk 0:00:43]} 66. Kg5 {[%clk 0:00:27]}  Rb5+ {[%clk 0:00:43]} 67. Kg6 {[%clk 0:00:28]}  Rb6+ {[%clk 0:00:44]} 68. Kh7 {[%clk 0:00:28]} 1-0


[Site "https://www.chess.com"]

[Event "Titled Tuesday Blitz November 15 Early 2022"]
[White "Tregubov, Pavel V."]
[Black "Ronka, Erik"]
[WhiteFideId "4115341"]
[BlackFideId "505080"]
[WhiteElo "2448"]
[BlackElo "2264"]
[Result "1-0"]
[Round "11"]
[TimeControl "180+1"]
[Date "2022.11.16"]
[WhiteClock "0:00:09"]
[BlackClock "0:00:01"]

1. e4 {[%clk 0:03:00]}  c5 {[%clk 0:02:58]} 2. Nf3 {[%clk 0:03:00]}  e6 {[%clk 0:02:58]} 3. c3 {[%clk 0:03:00]}  Nf6 {[%clk 0:02:57]} 4. e5 {[%clk 0:03:00]}  Nd5 {[%clk 0:02:58]} 5. d4 {[%clk 0:03:00]}  cxd4 {[%clk 0:02:59]} 6. cxd4 {[%clk 0:03:01]}  d6 {[%clk 0:03:00]} 7. Bc4 {[%clk 0:03:01]}  Be7 {[%clk 0:03:00]} 8. O-O {[%clk 0:03:01]}  O-O {[%clk 0:03:00]} 9. Qe2 {[%clk 0:03:01]}  Nc6 {[%clk 0:02:58]} 10. Rd1 {[%clk 0:03:01]}  Na5 {[%clk 0:02:53]} 11. Bd3 {[%clk 0:03:01]}  Nb4 {[%clk 0:02:51]} 12. Nc3 {[%clk 0:03:02]}  Nxd3 {[%clk 0:02:50]} 13. Rxd3 {[%clk 0:03:02]}  b6 {[%clk 0:02:48]} 14. b4 {[%clk 0:03:02]}  Nc6 {[%clk 0:02:26]} 15. a3 {[%clk 0:03:00]}  d5 {[%clk 0:02:11]} 16. Ne1 {[%clk 0:02:57]}  f6 {[%clk 0:01:53]} 17. exf6 {[%clk 0:02:45]}  Bxf6 {[%clk 0:01:52]} 18. Nf3 {[%clk 0:02:46]}  Bd7 {[%clk 0:01:46]} 19. Bf4 {[%clk 0:02:45]}  Rc8 {[%clk 0:01:45]} 20. Qd2 {[%clk 0:02:33]}  a5 {[%clk 0:01:36]} 21. b5 {[%clk 0:02:27]}  Ne7 {[%clk 0:01:35]} 22. Ne5 {[%clk 0:02:05]}  Be8 {[%clk 0:01:26]} 23. Re1 {[%clk 0:02:01]}  Ng6 {[%clk 0:01:25]} 24. Bg3 {[%clk 0:01:58]}  Nxe5 {[%clk 0:01:13]} 25. Bxe5 {[%clk 0:01:58]}  Bg6 {[%clk 0:01:14]} 26. Bxf6 {[%clk 0:01:39]}  Rxf6 {[%clk 0:01:06]} 27. Rde3 {[%clk 0:01:38]}  Qd6 {[%clk 0:01:06]} 28. h3 {[%clk 0:01:27]}  Rc4 {[%clk 0:00:56]} 29. Qd1 {[%clk 0:01:07]}  Bf7 {[%clk 0:00:47]} 30. Ne2 {[%clk 0:00:44]}  Qd7 {[%clk 0:00:44]} 31. Qb3 {[%clk 0:00:33]}  a4 {[%clk 0:00:41]} 32. Qb2 {[%clk 0:00:32]}  Qd6 {[%clk 0:00:37]} 33. Ng3 {[%clk 0:00:22]}  g6 {[%clk 0:00:32]} 34. Nf1 {[%clk 0:00:21]}  Kg7 {[%clk 0:00:31]} 35. Nd2 {[%clk 0:00:20]}  Rc8 {[%clk 0:00:15]} 36. Nf3 {[%clk 0:00:21]}  Bg8 {[%clk 0:00:15]} 37. Ne5 {[%clk 0:00:21]}  Rf4 {[%clk 0:00:14]} 38. Nc6 {[%clk 0:00:21]}  Rf6 {[%clk 0:00:11]} 39. Re5 {[%clk 0:00:20]}  Rcf8 {[%clk 0:00:11]} 40. R1e2 {[%clk 0:00:19]}  h6 {[%clk 0:00:11]} 41. Qc1 {[%clk 0:00:18]}  Bf7 {[%clk 0:00:11]} 42. g3 {[%clk 0:00:18]}  Be8 {[%clk 0:00:12]} 43. Kg2 {[%clk 0:00:17]}  R8f7 {[%clk 0:00:11]} 44. Qe3 {[%clk 0:00:16]}  Bxc6 {[%clk 0:00:10]} 45. bxc6 {[%clk 0:00:16]}  Qxc6 {[%clk 0:00:11]} 46. Rxe6 {[%clk 0:00:17]}  Rxe6 {[%clk 0:00:11]} 47. Qxe6 {[%clk 0:00:17]}  Qc4 {[%clk 0:00:09]} 48. Qe5+ {[%clk 0:00:16]}  Kh7 {[%clk 0:00:09]} 49. Rb2 {[%clk 0:00:15]}  Qc6 {[%clk 0:00:08]} 50. Re2 {[%clk 0:00:14]}  Qc4 {[%clk 0:00:08]} 51. h4 {[%clk 0:00:14]}  Qc6 {[%clk 0:00:08]} 52. h5 {[%clk 0:00:14]}  gxh5 {[%clk 0:00:06]} 53. Qxh5 {[%clk 0:00:13]}  Qf6 {[%clk 0:00:06]} 54. Qg4 {[%clk 0:00:11]}  Rg7 {[%clk 0:00:05]} 55. Qh5 {[%clk 0:00:09]}  Qxd4 {[%clk 0:00:03]} 56. Qf5+ {[%clk 0:00:09]}  Kg8 {[%clk 0:00:01]} 57. Re8# {[%clk 0:00:09]} 1-0


[Site "https://www.chess.com"]

[Event "Titled Tuesday Blitz November 15 Early 2022"]
[White "Vlassov, Nikolai"]
[Black "Rose, Felix"]
[WhiteFideId "4103360"]
[BlackFideId "5105722"]
[WhiteElo "2324"]
[BlackElo "2039"]
[Result "1-0"]
[Round "11"]
[TimeControl "180+1"]
[Date "2022.11.16"]
[WhiteClock "0:02:20"]
[BlackClock "0:01:52"]

1. e4 {[%clk 0:03:00]}  e6 {[%clk 0:02:58]} 2. d4 {[%clk 0:02:58]}  d5 {[%clk 0:02:59]} 3. exd5 {[%clk 0:02:59]}  exd5 {[%clk 0:02:59]} 4. Nf3 {[%clk 0:02:59]}  Nf6 {[%clk 0:02:59]} 5. c4 {[%clk 0:02:59]}  dxc4 {[%clk 0:02:58]} 6. Bxc4 {[%clk 0:02:59]}  Bb4+ {[%clk 0:02:58]} 7. Nc3 {[%clk 0:02:58]}  O-O {[%clk 0:02:57]} 8. O-O {[%clk 0:02:58]}  h6 {[%clk 0:02:55]} 9. Ne5 {[%clk 0:02:55]}  Nbd7 {[%clk 0:02:42]} 10. Nxf7 {[%clk 0:02:52]}  Rxf7 {[%clk 0:02:11]} 11. Bxf7+ {[%clk 0:02:50]}  Kxf7 {[%clk 0:02:09]} 12. Qb3+ {[%clk 0:02:48]}  Kf8 {[%clk 0:02:08]} 13. Qxb4+ {[%clk 0:02:47]}  Kg8 {[%clk 0:02:09]} 14. Bf4 {[%clk 0:02:44]}  Nb6 {[%clk 0:02:08]} 15. Rfe1 {[%clk 0:02:38]}  Bf5 {[%clk 0:02:00]} 16. Rad1 {[%clk 0:02:31]}  Nbd5 {[%clk 0:01:56]} 17. Nxd5 {[%clk 0:02:27]}  Nxd5 {[%clk 0:01:57]} 18. Qb3 {[%clk 0:02:25]}  Kh7 {[%clk 0:01:54]} 19. Bg3 {[%clk 0:02:23]}  c6 {[%clk 0:01:52]} 20. Qxb7 {[%clk 0:02:20]} 1-0


[Site "https://www.chess.com"]

[Event "Titled Tuesday Blitz November 15 Early 2022"]
[White "Volkov, Maksim"]
[Black "Stribuk, Artiom"]
[WhiteFideId "54123070"]
[BlackFideId "13515659"]
[WhiteElo "2659"]
[BlackElo "2814"]
[Result "0-1"]
[Round "11"]
[TimeControl "180+1"]
[Date "2022.11.16"]
[WhiteClock "0:00:18"]
[BlackClock "0:00:14"]

1. d4 {[%clk 0:03:00]}  Nf6 {[%clk 0:02:59]} 2. c4 {[%clk 0:03:00]}  c5 {[%clk 0:02:59]} 3. d5 {[%clk 0:03:00]}  b5 {[%clk 0:02:59]} 4. cxb5 {[%clk 0:03:00]}  a6 {[%clk 0:03:00]} 5. bxa6 {[%clk 0:03:00]}  g6 {[%clk 0:03:00]} 6. Nc3 {[%clk 0:03:01]}  Bg7 {[%clk 0:03:00]} 7. e4 {[%clk 0:03:01]}  O-O {[%clk 0:03:01]} 8. a7 {[%clk 0:02:40]}  Rxa7 {[%clk 0:02:59]} 9. Nf3 {[%clk 0:02:40]}  e6 {[%clk 0:03:00]} 10. Be2 {[%clk 0:02:38]}  exd5 {[%clk 0:02:59]} 11. exd5 {[%clk 0:02:39]}  d6 {[%clk 0:02:59]} 12. O-O {[%clk 0:02:39]}  Na6 {[%clk 0:03:00]} 13. Nb5 {[%clk 0:02:36]}  Rd7 {[%clk 0:02:48]} 14. Bf4 {[%clk 0:02:17]}  Bb7 {[%clk 0:02:37]} 15. Bc4 {[%clk 0:02:16]}  Nb4 {[%clk 0:02:28]} 16. Nc3 {[%clk 0:02:12]}  Qa8 {[%clk 0:02:25]} 17. a4 {[%clk 0:01:50]}  Nfxd5 {[%clk 0:02:12]} 18. Nxd5 {[%clk 0:01:47]}  Nxd5 {[%clk 0:02:02]} 19. Bg3 {[%clk 0:01:46]}  Nb4 {[%clk 0:01:33]} 20. Bb5 {[%clk 0:01:39]}  Bc6 {[%clk 0:01:16]} 21. Qe2 {[%clk 0:00:50]}  Re8 {[%clk 0:00:42]} 22. Bxc6 {[%clk 0:00:39]}  Nxc6 {[%clk 0:00:43]} 23. Qd2 {[%clk 0:00:39]}  Rb8 {[%clk 0:00:35]} 24. Rfb1 {[%clk 0:00:36]}  Rb3 {[%clk 0:00:29]} 25. a5 {[%clk 0:00:35]}  Rxf3 {[%clk 0:00:20]} 26. gxf3 {[%clk 0:00:34]}  Nd4 {[%clk 0:00:20]} 27. Qf4 {[%clk 0:00:27]}  Ne2+ {[%clk 0:00:20]} 28. Kg2 {[%clk 0:00:26]}  Nxf4+ {[%clk 0:00:21]} 29. Bxf4 {[%clk 0:00:26]}  Ra7 {[%clk 0:00:20]} 30. Bd2 {[%clk 0:00:24]}  Ra6 {[%clk 0:00:20]} 31. Ra4 {[%clk 0:00:21]}  Bf6 {[%clk 0:00:18]} 32. b4 {[%clk 0:00:21]}  cxb4 {[%clk 0:00:18]} 33. Rbxb4 {[%clk 0:00:22]}  Bd8 {[%clk 0:00:16]} 34. Rb5 {[%clk 0:00:21]}  h5 {[%clk 0:00:13]} 35. Bc3 {[%clk 0:00:21]}  Kh7 {[%clk 0:00:12]} 36. Rab4 {[%clk 0:00:18]}  Bxa5 {[%clk 0:00:09]} 37. Rb8 {[%clk 0:00:17]}  Qxb8 {[%clk 0:00:09]} 38. Rxb8 {[%clk 0:00:16]}  Bxc3 {[%clk 0:00:10]} 39. Rf8 {[%clk 0:00:16]}  Kg7 {[%clk 0:00:10]} 40. Rd8 {[%clk 0:00:17]}  Be5 {[%clk 0:00:10]} 41. Rc8 {[%clk 0:00:18]}  Ra4 {[%clk 0:00:10]} 42. Rd8 {[%clk 0:00:18]}  Rf4 {[%clk 0:00:11]} 43. h3 {[%clk 0:00:19]}  Rf5 {[%clk 0:00:11]} 44. Rd7 {[%clk 0:00:18]}  Kf6 {[%clk 0:00:12]} 45. Rb7 {[%clk 0:00:17]}  Ke6 {[%clk 0:00:13]} 46. Rb6 {[%clk 0:00:17]}  Kd5 {[%clk 0:00:13]} 47. Rb5+ {[%clk 0:00:17]}  Kc4 {[%clk 0:00:13]} 48. Rb8 {[%clk 0:00:18]}  Bd4 {[%clk 0:00:14]} 0-1


[Site "https://www.chess.com"]

[Event "Titled Tuesday Blitz November 15 Early 2022"]
[White "Wagner, Dennis"]
[Black "Aaditya Dhingra"]
[WhiteFideId "24650684"]
[BlackFideId "25678191"]
[WhiteElo "2727"]
[BlackElo "2596"]
[Result "0-1"]
[Round "11"]
[TimeControl "180+1"]
[Date "2022.11.16"]
[WhiteClock "0:00:06"]
[BlackClock "0:00:17"]

1. e4 {[%clk 0:03:00]}  e5 {[%clk 0:02:58]} 2. Nf3 {[%clk 0:03:00]}  Nc6 {[%clk 0:02:57]} 3. Bc4 {[%clk 0:03:01]}  Bc5 {[%clk 0:02:54]} 4. c3 {[%clk 0:03:01]}  Nf6 {[%clk 0:02:52]} 5. d3 {[%clk 0:03:01]}  d6 {[%clk 0:02:50]} 6. a4 {[%clk 0:03:00]}  a6 {[%clk 0:02:44]} 7. Bg5 {[%clk 0:02:55]}  h6 {[%clk 0:02:32]} 8. Bh4 {[%clk 0:02:54]}  g5 {[%clk 0:02:29]} 9. Bg3 {[%clk 0:02:53]}  Ba7 {[%clk 0:02:28]} 10. Nbd2 {[%clk 0:02:50]}  O-O {[%clk 0:02:25]} 11. O-O {[%clk 0:02:49]}  Kg7 {[%clk 0:02:23]} 12. b4 {[%clk 0:02:41]}  Ne7 {[%clk 0:02:19]} 13. d4 {[%clk 0:02:38]}  Nh5 {[%clk 0:02:13]} 14. dxe5 {[%clk 0:02:29]}  Nxg3 {[%clk 0:02:12]} 15. hxg3 {[%clk 0:02:30]}  dxe5 {[%clk 0:02:08]} 16. Nxe5 {[%clk 0:02:30]}  f6 {[%clk 0:02:00]} 17. Nd3 {[%clk 0:02:18]}  Ng6 {[%clk 0:01:56]} 18. Nf3 {[%clk 0:01:52]}  Qd6 {[%clk 0:01:47]} 19. Qb3 {[%clk 0:01:37]}  Qxg3 {[%clk 0:01:42]} 20. Nd4 {[%clk 0:01:22]}  Qh4 {[%clk 0:01:41]} 21. Nc5 {[%clk 0:00:48]}  Bxc5 {[%clk 0:01:30]} 22. bxc5 {[%clk 0:00:49]}  Nf4 {[%clk 0:01:26]} 23. Be6 {[%clk 0:00:38]}  Bxe6 {[%clk 0:01:21]} 24. Nxe6+ {[%clk 0:00:37]}  Kh8 {[%clk 0:01:15]} 25. Nxf4 {[%clk 0:00:29]}  gxf4 {[%clk 0:01:14]} 26. Qxb7 {[%clk 0:00:15]}  Rg8 {[%clk 0:01:13]} 27. e5 {[%clk 0:00:15]}  Rxg2+ {[%clk 0:01:06]} 28. Qxg2 {[%clk 0:00:08]}  Rg8 {[%clk 0:01:07]} 29. Qxg8+ {[%clk 0:00:03]}  Kxg8 {[%clk 0:01:08]} 30. f3 {[%clk 0:00:02]}  Qg3+ {[%clk 0:01:02]} 31. Kh1 {[%clk 0:00:03]}  Qh4+ {[%clk 0:01:00]} 32. Kg2 {[%clk 0:00:03]}  fxe5 {[%clk 0:00:56]} 33. Rae1 {[%clk 0:00:02]}  Qg5+ {[%clk 0:00:54]} 34. Kh1 {[%clk 0:00:02]}  Kf7 {[%clk 0:00:49]} 35. Re2 {[%clk 0:00:02]}  Qf5 {[%clk 0:00:47]} 36. Rh2 {[%clk 0:00:02]}  Qd3 {[%clk 0:00:43]} 37. Kg2 {[%clk 0:00:03]}  Kg6 {[%clk 0:00:40]} 38. Rf2 {[%clk 0:00:03]}  Qxc3 {[%clk 0:00:36]} 39. Rh1 {[%clk 0:00:03]}  h5 {[%clk 0:00:29]} 40. Re2 {[%clk 0:00:03]}  Qxc5 {[%clk 0:00:26]} 41. Rhe1 {[%clk 0:00:04]}  Kf5 {[%clk 0:00:23]} 42. Rh1 {[%clk 0:00:05]}  Kg6 {[%clk 0:00:21]} 43. Rhe1 {[%clk 0:00:05]}  Kf6 {[%clk 0:00:21]} 44. Rh1 {[%clk 0:00:06]}  Qc4 {[%clk 0:00:20]} 45. Rhe1 {[%clk 0:00:06]}  Qd5 {[%clk 0:00:17]} 46. Rh1 {[%clk 0:00:06]}  Qg8+ {[%clk 0:00:17]} 47. Kf2 {[%clk 0:00:06]}  Qg3+ {[%clk 0:00:17]} 48. Kf1 {[%clk 0:00:06]}  Qxf3+ {[%clk 0:00:18]} 49. Kg1 {[%clk 0:00:05]}  Qxe2 {[%clk 0:00:17]} 50. a5 {[%clk 0:00:06]}  f3 {[%clk 0:00:16]} 51. Rh2 {[%clk 0:00:06]}  Qxh2+ {[%clk 0:00:16]} 52. Kf1 {[%clk 0:00:06]}  e4 {[%clk 0:00:17]} 0-1


[Site "https://www.chess.com"]

[Event "Titled Tuesday Blitz November 15 Early 2022"]
[White "Yeremyan, Alen"]
[Black "Kopczynski, Michal"]
[WhiteFideId "13308998"]
[BlackFideId "1124200"]
[WhiteElo "2159"]
[BlackElo "2235"]
[Result "0-1"]
[Round "11"]
[TimeControl "180+1"]
[Date "2022.11.16"]
[WhiteClock "0:00:29"]
[BlackClock "0:00:08"]

1. g3 {[%clk 0:03:00]}  d6 {[%clk 0:02:59]} 2. Bg2 {[%clk 0:03:01]}  e5 {[%clk 0:03:00]} 3. d3 {[%clk 0:02:56]}  g6 {[%clk 0:03:00]} 4. c4 {[%clk 0:02:52]}  Bg7 {[%clk 0:03:00]} 5. Nc3 {[%clk 0:02:53]}  f5 {[%clk 0:02:59]} 6. e4 {[%clk 0:02:51]}  Nf6 {[%clk 0:02:58]} 7. Nge2 {[%clk 0:02:50]}  O-O {[%clk 0:02:58]} 8. O-O {[%clk 0:02:50]}  fxe4 {[%clk 0:02:58]} 9. dxe4 {[%clk 0:02:49]}  Nc6 {[%clk 0:02:57]} 10. b3 {[%clk 0:02:48]}  Be6 {[%clk 0:02:54]} 11. h3 {[%clk 0:02:49]}  Qd7 {[%clk 0:02:54]} 12. Kh2 {[%clk 0:02:49]}  Nd4 {[%clk 0:02:49]} 13. Nxd4 {[%clk 0:02:47]}  exd4 {[%clk 0:02:50]} 14. Nd5 {[%clk 0:02:47]}  c6 {[%clk 0:02:31]} 15. Nf4 {[%clk 0:02:43]}  Bf7 {[%clk 0:02:25]} 16. Nd3 {[%clk 0:02:42]}  Rae8 {[%clk 0:02:23]} 17. Re1 {[%clk 0:02:42]}  h6 {[%clk 0:02:15]} 18. Bd2 {[%clk 0:02:39]}  g5 {[%clk 0:02:15]} 19. e5 {[%clk 0:02:30]}  dxe5 {[%clk 0:01:33]} 20. Nxe5 {[%clk 0:02:25]}  Rxe5 {[%clk 0:01:32]} 21. Rxe5 {[%clk 0:02:26]}  Ng4+ {[%clk 0:01:32]} 22. Qxg4 {[%clk 0:02:27]}  Qxg4 {[%clk 0:01:30]} 23. hxg4 {[%clk 0:02:27]}  Bxe5 {[%clk 0:01:31]} 24. f4 {[%clk 0:02:28]}  Bf6 {[%clk 0:01:23]} 25. Re1 {[%clk 0:02:14]}  Re8 {[%clk 0:01:21]} 26. Rxe8+ {[%clk 0:02:14]}  Bxe8 {[%clk 0:01:22]} 27. Be4 {[%clk 0:02:13]}  Kf7 {[%clk 0:01:14]} 28. Kg2 {[%clk 0:02:11]}  Bd7 {[%clk 0:01:09]} 29. Kf3 {[%clk 0:02:11]}  b6 {[%clk 0:01:03]} 30. Bd3 {[%clk 0:02:06]}  Ke7 {[%clk 0:01:02]} 31. b4 {[%clk 0:02:06]}  c5 {[%clk 0:01:00]} 32. b5 {[%clk 0:02:06]}  Be6 {[%clk 0:00:54]} 33. a4 {[%clk 0:02:04]}  Kd6 {[%clk 0:00:45]} 34. a5 {[%clk 0:02:02]}  Bd8 {[%clk 0:00:39]} 35. a6 {[%clk 0:02:02]}  Bf6 {[%clk 0:00:33]} 36. Ba5 {[%clk 0:01:46]}  Bd8 {[%clk 0:00:18]} 37. Bd2 {[%clk 0:01:44]}  Bf6 {[%clk 0:00:18]} 38. Be1 {[%clk 0:01:36]}  Bd8 {[%clk 0:00:18]} 39. f5 {[%clk 0:01:35]}  Bf7 {[%clk 0:00:17]} 40. Bd2 {[%clk 0:01:33]}  Bf6 {[%clk 0:00:17]} 41. Ke2 {[%clk 0:01:30]}  Be5 {[%clk 0:00:16]} 42. Kf3 {[%clk 0:01:26]}  Bf6 {[%clk 0:00:16]} 43. Ba5 {[%clk 0:01:20]}  Bd8 {[%clk 0:00:14]} 44. Be1 {[%clk 0:01:17]}  Bf6 {[%clk 0:00:14]} 45. Bd2 {[%clk 0:01:17]}  Be7 {[%clk 0:00:14]} 46. Ke2 {[%clk 0:01:17]}  Bf6 {[%clk 0:00:14]} 47. Be1 {[%clk 0:01:17]}  Be7 {[%clk 0:00:14]} 48. Kd2 {[%clk 0:01:18]}  Bf6 {[%clk 0:00:13]} 49. Be2 {[%clk 0:01:18]}  Be7 {[%clk 0:00:12]} 50. Kd3 {[%clk 0:01:18]}  Bf6 {[%clk 0:00:13]} 51. Bf3 {[%clk 0:01:18]}  Be7 {[%clk 0:00:13]} 52. Bd2 {[%clk 0:01:10]}  Bf6 {[%clk 0:00:13]} 53. Bc1 {[%clk 0:00:59]}  Be5 {[%clk 0:00:13]} 54. Bd2 {[%clk 0:00:57]}  Bxg3 {[%clk 0:00:13]} 55. Ba5 {[%clk 0:00:57]}  Kc7 {[%clk 0:00:13]} 56. Bd2 {[%clk 0:00:54]}  Kd7 {[%clk 0:00:12]} 57. Bd5 {[%clk 0:00:52]}  Bxd5 {[%clk 0:00:10]} 58. cxd5 {[%clk 0:00:52]}  Kd6 {[%clk 0:00:11]} 59. Kc4 {[%clk 0:00:52]}  Bf4 {[%clk 0:00:09]} 60. f6 {[%clk 0:00:52]}  Bxd2 {[%clk 0:00:08]} 61. f7 {[%clk 0:00:27]}  Ke7 {[%clk 0:00:08]} 62. d6+ {[%clk 0:00:27]}  Kxf7 {[%clk 0:00:09]} 63. Kd5 {[%clk 0:00:28]}  Ke8 {[%clk 0:00:09]} 64. Kc6 {[%clk 0:00:24]}  d3 {[%clk 0:00:09]} 65. Kb7 {[%clk 0:00:24]}  Kd7 {[%clk 0:00:08]} 66. Kxa7 {[%clk 0:00:25]}  Ba5 {[%clk 0:00:06]} 67. Kb7 {[%clk 0:00:26]}  d2 {[%clk 0:00:07]} 68. a7 {[%clk 0:00:26]}  d1=Q {[%clk 0:00:07]} 69. a8=Q {[%clk 0:00:27]}  Qf3+ {[%clk 0:00:07]} 70. Ka7 {[%clk 0:00:27]}  Qxa8+ {[%clk 0:00:08]} 71. Kxa8 {[%clk 0:00:28]}  Kxd6 {[%clk 0:00:08]} 72. Kb7 {[%clk 0:00:29]} 0-1


[Site "https://www.chess.com"]